bitfinex/quotes_SOLUSD_20241125
["timestamp","ask_amount","ask_price","bid_price","bid_amount"]
[1732559073566,1.4465,241.95,241.8,41.69601824]
[1732559073857,1.4465,241.95,241.8,11.11011824]
[1732559075274,0.4133,241.95,241.84,11.11011824]
[1732559075655,1.4465,241.95,241.75,30.9488]
[1732559075856,1.4465,241.95,241.77,11.11011824]
[1732559076072,1.4465,241.95,241.81,11.11011824]
[1732559076252,0.4133,241.95,241.85,11.11011824]
[1732559077376,0.4133,241.95,241.84,11.11011824]
[1732559077697,0.4133,241.95,241.82,11.11011824]
[1732559078180,21.4465,241.95,241.82,11.11011824]
[1732559078351,21.4465,241.95,241.8,11.11011824]
[1732559078784,21.4465,241.95,241.78,11.11011824]
[1732559079571,23.776884,241.94,241.76,11.11011824]
[1732559079774,20.0,241.89,241.74,11.11011824]
[1732559080377,20.0,241.9,241.74,11.11011824]
[1732559080874,0.4134,241.89,241.74,11.11011824]
[1732559081051,0.4134,241.89,241.76,11.11011824]
[1732559081799,0.4134,241.89,241.74,11.11011824]
[1732559082868,1.4469,241.89,241.74,11.11011824]
[1732559083267,1.4469,241.89,241.76,11.11011824]
[1732559084399,1.4469,241.89,241.74,11.11011824]
[1732559085057,1.4469,241.89,241.76,11.11011824]
[1732559086181,1.4469,241.89,241.74,11.11011824]
[1732559086394,1.4469,241.89,241.72,11.11011824]
[1732559087069,21.4469,241.89,241.72,11.11011824]
[1732559089995,21.4469,241.89,241.75,11.11011824]
[1732559091181,0.4134,241.87,241.79,11.11011824]
[1732559091790,20.0,241.84,241.79,11.11011824]
[1732559092993,0.4134,241.85,241.79,11.11011824]
[1732559094569,0.4134,241.88,241.79,11.11011824]
[1732559095179,1.4469,241.88,241.77,11.11011824]
[1732559096099,20.0,241.87,241.77,11.11011824]
[1732559096674,1.447,241.86,241.75,11.11011824]
[1732559098401,1.0336,241.86,241.77,11.11011824]
[1732559099602,1.0336,241.86,241.75,11.11011824]
[1732559100097,23.776884,241.89,241.75,11.11011824]
[1732559100304,20.0,241.86,241.75,11.11011824]
[1732559100804,20.0,241.86,241.77,11.11011824]
[1732559100989,20.0,241.9,241.81,11.11011824]
[1732559101570,20.0,241.9,241.79,11.11011824]
[1732559101773,20.0,241.9,241.75,11.11011824]
[1732559102280,1.4469,241.89,241.75,11.11011824]
[1732559102485,1.4469,241.89,241.73,11.11011824]
[1732559102486,20.0,241.84,241.73,11.11011824]
[1732559102892,20.0,241.84,241.71,11.11011824]
[1732559103183,20.0,241.84,241.73,11.11011824]
[1732559104281,0.4135,241.83,241.73,11.11011824]
[1732559104475,0.4135,241.83,241.75,11.11011824]
[1732559105485,0.4135,241.83,241.73,11.11011824]
[1732559106003,0.4135,241.83,241.71,11.11011824]
[1732559106210,20.0,241.8,241.63,30.8993]
[1732559106502,21.4474,241.79,241.7,11.11011824]
[1732559107014,21.4474,241.79,241.68,11.11011824]
[1732559107501,1.4474,241.79,241.7,11.11011824]
[1732559107887,1.4474,241.79,241.68,11.11011824]
[1732559110079,1.4474,241.79,241.7,11.11011824]
[1732559110308,0.4135,241.79,241.7,11.11011824]
[1732559110510,0.4135,241.79,241.72,11.11011824]
[1732559110894,0.4134,241.86,241.76,11.11011824]
[1732559111088,0.4134,241.86,241.78,11.11011824]
[1732559112413,20.0,241.84,241.76,11.11011824]
[1732559112616,0.4134,241.86,241.76,11.11011824]
[1732559113104,0.4134,241.86,241.67,60.4522337]
[1732559113105,0.4134,241.86,241.74,11.11011824]
[1732559113295,23.776884,241.85,241.7,11.11011824]
[1732559114090,20.0,241.82,241.7,11.11011824]
[1732559114605,20.0,241.82,241.67,4.1377]
[1732559114809,20.0,241.82,241.63,30.8993]
[1732559115017,20.0,241.82,241.7,11.11011824]
[1732559116013,0.4135,241.81,241.72,11.11011824]
[1732559116312,0.4135,241.81,241.7,11.11011824]
[1732559116698,0.4135,241.81,241.72,11.11011824]
[1732559118412,0.4135,241.83,241.74,11.11011824]
[1732559118622,0.4135,241.83,241.76,11.11011824]
[1732559119607,0.4134,241.86,241.74,11.11011824]
[1732559119797,20.0,241.84,241.74,11.11011824]
[1732559120109,20.0,241.84,241.76,11.11011824]
[1732559121088,0.4135,241.83,241.76,11.11011824]
[1732559121306,0.4135,241.83,241.74,11.11011824]
[1732559124222,1.4472,241.83,241.69,15.24511824]
[1732559124814,1.4472,241.83,241.69,11.11011824]
[1732559125010,1.4472,241.83,241.69,15.24511824]
[1732559125231,20.0,241.79,241.69,15.24511824]
[1732559125424,20.0,241.79,241.66,49.0054255]
[1732559125718,20.0,241.75,241.66,49.0054255]
[1732559126026,20.0,241.75,241.66,37.89530726]
[1732559126896,20.0,241.71,241.66,37.89530726]
[1732559127101,20.0,241.71,241.56,11.11011824]
[1732559127305,20.0,241.67,241.56,11.11011824]
[1732559127707,0.4138,241.66,241.56,11.11011824]
[1732559129297,42.5885,241.67,241.58,11.11011824]
[1732559132598,42.5885,241.67,241.57,11.11011824]
[1732559133202,20.0,241.67,241.61,11.11011824]
[1732559133401,0.4137,241.68,241.59,11.11011824]
[1732559133897,22.7669,241.73,241.66,11.11011824]
[1732559134097,22.7669,241.73,241.67,11.11011824]
[1732559134425,23.1805,241.73,241.67,11.11011824]
[1732559134721,23.1805,241.73,241.63,11.11011824]
[1732559135424,20.0,241.7,241.63,11.11011824]
[1732559135607,20.0,241.7,241.61,11.11011824]
[1732559135807,20.0,241.7,241.59,11.11011824]
[1732559136523,0.4137,241.69,241.59,11.11011824]
[1732559137225,8.2067,241.68,241.53,4.1402]
[1732559137423,21.6097,241.64,241.52,11.11011824]
[1732559137744,20.0,241.61,241.54,11.11011824]
[1732559138027,20.0,241.61,241.56,11.11011824]
[1732559138919,20.0,241.61,241.58,11.11011824]
[1732559139125,21.6097,241.64,241.58,11.11011824]
[1732559139301,10.0,241.58,241.42,1.84985366]
[1732559139498,20.0,241.51,241.36,11.11011824]
[1732559140511,0.414,241.5,241.36,11.11011824]
[1732559140910,20.0,241.47,241.36,11.11011824]
[1732559141100,20.0,241.47,241.31,4.1439]
[1732559141101,20.0,241.47,241.34,11.11011824]
[1732559142427,20.0,241.47,241.38,11.11011824]
[1732559142626,20.4141,241.47,241.38,11.11011824]
[1732559143132,23.5893,241.5,241.42,11.11011824]
[1732559143513,0.414,241.54,241.42,11.11011824]
[1732559144433,0.414,241.51,241.42,11.11011824]
[1732559145302,20.0,241.48,241.38,11.11011824]
[1732559146035,20.0,241.48,241.36,11.11011824]
[1732559146233,20.0,241.48,241.38,11.11011824]
[1732559146406,0.414,241.51,241.4,11.11011824]
[1732559149018,20.0,241.52,241.44,11.11011824]
[1732559149222,20.414,241.52,241.42,11.11011824]
[1732559149418,20.414,241.52,241.4,11.11011824]
[1732559149926,20.414,241.52,241.37,22.6004]
[1732559150131,20.0,241.48,241.37,22.6004]
[1732559150335,20.0,241.48,241.36,11.11011824]
[1732559150543,20.0,241.48,241.38,11.11011824]
[1732559151116,0.4141,241.47,241.38,11.11011824]
[1732559151837,0.4141,241.47,241.32,23.776884]
[1732559152016,20.0,241.44,241.33,11.11011824]
[1732559152217,20.0,241.44,241.24,10.0]
[1732559152218,20.0,241.4,241.23,39.73050588]
[1732559152513,20.0,241.4,241.33,11.11011824]
[1732559153922,20.0,241.45,241.37,11.11011824]
[1732559154616,20.0,241.45,241.35,11.11011824]
[1732559154929,0.4141,241.44,241.35,11.11011824]
[1732559156543,20.0,241.45,241.35,11.11011824]
[1732559156759,20.4141,241.45,241.35,11.11011824]
[1732559158054,20.4141,241.45,241.28,72.230984]
[1732559158350,20.4141,241.45,241.33,11.11011824]
[1732559159354,20.4141,241.45,241.33,15.25371824]
[1732559160439,20.4141,241.45,241.35,11.11011824]
[1732559160647,20.0,241.45,241.37,11.11011824]
[1732559160836,20.0,241.45,241.39,11.11011824]
[1732559161047,14.5128,241.49,241.42,11.11011824]
[1732559161427,14.9269,241.49,241.42,11.11011824]
[1732559161749,14.5128,241.49,241.42,11.11011824]
[1732559164843,0.83253775,241.58,241.47,11.11011824]
[1732559165050,0.83253775,241.58,241.49,11.11011824]
[1732559166341,20.83253775,241.58,241.49,11.11011824]
[1732559166759,20.41863775,241.58,241.51,11.11011824]
[1732559166960,20.41863775,241.58,241.53,11.11011824]
[1732559167538,0.41863775,241.58,241.53,11.11011824]
[1732559168265,0.41863775,241.58,241.45,10.3538]
[1732559168266,0.41863775,241.58,241.57,11.11011824]
[1732559168556,0.41863775,241.58,241.55,11.11011824]
[1732559168761,0.41863775,241.58,241.52,11.11011824]
[1732559168930,0.83253775,241.58,241.46,11.11011824]
[1732559169129,0.83253775,241.58,241.44,11.11011824]
[1732559169346,20.0,241.54,241.41,11.11011824]
[1732559169760,0.414,241.49,241.39,33.23321824]
[1732559169962,23.776884,241.53,241.39,33.23321824]
[1732559170564,23.776884,241.53,241.4,11.11011824]
[1732559171266,0.4139,241.56,241.44,11.11011824]
[1732559171437,24.190784,241.56,241.43,11.11011824]
[1732559171833,20.0,241.53,241.43,11.11011824]
[1732559172347,20.0,241.53,241.41,11.11011824]
[1732559173262,23.776884,241.52,241.41,11.11011824]
[1732559173435,20.0,241.49,241.37,11.11011824]
[1732559174065,0.4141,241.48,241.37,11.11011824]
[1732559174654,0.4141,241.48,241.33,22.9126]
[1732559174655,0.4141,241.48,241.39,11.11011824]
[1732559175836,0.4141,241.48,241.37,11.11011824]
[1732559176038,20.0,241.45,241.35,11.11011824]
[1732559176257,20.0,241.43,241.33,11.11011824]
[1732559176563,20.0,241.43,241.31,11.11011824]
[1732559177643,0.4142,241.42,241.31,11.11011824]
[1732559177838,20.0,241.39,241.27,22.1359]
[1732559178149,20.0,241.39,241.28,11.11011824]
[1732559178744,20.0,241.39,241.26,20.07061824]
[1732559178938,20.0,241.35,241.24,11.11011824]
[1732559180157,0.4143,241.34,241.24,11.11011824]
[1732559180339,0.4143,241.34,241.27,11.11011824]
[1732559181242,20.0,241.35,241.28,11.11011824]
[1732559181642,20.0,241.35,241.23,4.1453]
[1732559181643,0.4143,241.36,241.26,11.11011824]
[1732559181944,0.4143,241.36,241.27,11.11011824]
[1732559182152,20.0,241.36,241.27,11.11011824]
[1732559182351,20.0,241.36,241.25,11.11011824]
[1732559183262,0.4143,241.35,241.27,11.11011824]
[1732559183765,0.4143,241.37,241.27,11.11011824]
[1732559183973,1.0354,241.44,241.31,11.11011824]
[1732559184278,1.0354,241.43,241.29,11.11011824]
[1732559184446,1.0354,241.43,241.27,11.11011824]
[1732559184648,1.0354,241.43,241.29,11.11011824]
[1732559185163,20.0,241.39,241.29,11.11011824]
[1732559186853,20.0,241.39,241.27,11.11011824]
[1732559187260,0.4142,241.38,241.25,15.25511824]
[1732559189666,0.4142,241.38,241.27,11.11011824]
[1732559190369,0.4142,241.38,241.24,4.1452]
[1732559190370,20.0,241.43,241.31,11.11011824]
[1732559190669,0.4141,241.45,241.33,11.11011824]
[1732559191042,0.4141,241.45,241.27,20.0]
[1732559191269,0.4141,241.45,241.25,27.915884]
[1732559191270,0.4141,241.45,241.32,11.11011824]
[1732559191647,20.0,241.43,241.32,11.11011824]
[1732559193567,0.4142,241.42,241.32,11.11011824]
[1732559194260,0.4142,241.42,241.32,15.25391824]
[1732559196752,0.4142,241.42,241.3,11.11011824]
[1732559197171,1.4497,241.42,241.26,11.11011824]
[1732559197377,23.776884,241.41,241.26,11.11011824]
[1732559197557,20.0,241.38,241.24,15.25531824]
[1732559198651,0.4143,241.37,241.26,11.11011824]
[1732559200063,0.4143,241.37,241.28,11.11011824]
[1732559201276,0.4143,241.37,241.28,15.25461824]
[1732559202689,0.4141,241.44,241.34,11.11011824]
[1732559202880,0.4141,241.45,241.34,11.11011824]
[1732559203370,22.9925,241.46,241.36,11.11011824]
[1732559204278,22.9925,241.46,241.36,15.25321824]
[1732559205185,22.9925,241.46,241.34,11.11011824]
[1732559205480,20.0,241.43,241.34,11.11011824]
[1732559206073,20.0,241.43,241.3,4.1442]
[1732559206377,0.4142,241.42,241.3,11.11011824]
[1732559206972,0.4142,241.42,241.32,11.11011824]
[1732559207149,20.0,241.43,241.34,11.11011824]
[1732559207353,20.4142,241.43,241.34,11.11011824]
[1732559208163,20.0,241.43,241.34,11.11011824]
[1732559208353,22.9925,241.46,241.35,4.1433]
[1732559211581,22.9925,241.46,241.36,15.25311824]
[1732559216461,14.5128,241.46,241.39,11.11011824]
[1732559216784,15.1758,241.51,241.41,11.11011824]
[1732559216964,15.1758,241.51,241.43,11.11011824]
[1732559218076,14.7618,241.51,241.43,11.11011824]
[1732559218786,14.7618,241.51,241.43,15.25191824]
[1732559219174,14.7618,241.51,241.45,11.11011824]
[1732559219377,8.55593795,241.55,241.47,11.11011824]
[1732559219577,8.55593795,241.55,241.48,11.11011824]
[1732559219785,8.55593795,241.55,241.49,11.11011824]
[1732559220588,8.55593795,241.55,241.49,15.25091824]
[1732559221789,8.55593795,241.55,241.47,11.11011824]
[1732559221960,20.0,241.52,241.43,15.25201824]
[1732559222160,20.0,241.52,241.43,4.1419]
[1732559222985,20.0,241.51,241.39,11.11011824]
[1732559223159,20.0,241.51,241.4,11.11011824]
[1732559223776,20.0,241.51,241.38,11.11011824]
[1732559223985,0.414,241.5,241.39,4.1426]
[1732559224191,0.414,241.5,241.38,15.25291824]
[1732559224390,20.0,241.49,241.36,15.25311824]
[1732559224566,20.0,241.49,241.35,15.25341824]
[1732559224766,20.0,241.49,241.35,11.11011824]
[1732559224990,20.0,241.49,241.33,15.25361824]
[1732559225870,0.4141,241.47,241.33,15.25361824]
[1732559226074,20.0,241.45,241.34,11.11011824]
[1732559227086,20.0,241.45,241.34,15.25351824]
[1732559227087,0.4141,241.44,241.34,15.25351824]
[1732559227288,7.9584,241.43,241.3,11.11011824]
[1732559227467,7.9584,241.43,241.3,15.25421824]
[1732559227870,7.9584,241.43,241.3,11.11011824]
[1732559228867,34.7618,241.4,241.27,4.1445]
[1732559229063,0.4142,241.39,241.26,11.11011824]
[1732559229283,20.0,241.36,241.24,4.1452]
[1732559229491,20.0,241.36,241.25,11.11011824]
[1732559230278,0.4143,241.35,241.25,15.25501824]
[1732559230589,14.7618,241.4,241.3,11.11011824]
[1732559230782,20.0,241.37,241.29,11.11011824]
[1732559231595,0.4142,241.39,241.29,11.11011824]
[1732559231776,0.4142,241.39,241.29,15.25441824]
[1732559232185,0.4142,241.39,241.3,11.11011824]
[1732559232491,14.7618,241.4,241.33,11.11011824]
[1732559232694,14.7618,241.4,241.29,4.1443]
[1732559232695,20.0,241.4,241.32,11.11011824]
[1732559232876,7.9584,241.43,241.33,11.11011824]
[1732559233403,30.0,241.44,241.35,11.11011824]
[1732559233600,14.7618,241.46,241.38,11.11011824]
[1732559233776,14.7618,241.46,241.38,15.25281824]
[1732559233973,8.3728,241.49,241.39,11.11011824]
[1732559234685,8.3728,241.49,241.38,4.1427]
[1732559234974,5.45309653,241.48,241.35,11.11011824]
[1732559235173,9.0204599,241.48,241.33,11.11011824]
[1732559235403,9.0204599,241.48,241.3,4.144]
[1732559235404,20.0,241.45,241.3,4.144]
[1732559235580,29.22998053,241.44,241.3,4.144]
[1732559235782,20.0,241.41,241.3,4.144]
[1732559236099,20.0,241.41,241.28,4.1444]
[1732559236678,20.0,241.41,241.29,11.11011824]
[1732559237202,0.4142,241.4,241.29,15.25431824]
[1732559237882,0.4142,241.4,241.29,11.11011824]
[1732559238203,14.7626,241.39,241.25,15.25501824]
[1732559238975,0.4142,241.38,241.25,15.25501824]
[1732559239300,0.4142,241.38,241.25,4.1449]
[1732559239301,20.0,241.34,241.25,4.1449]
[1732559240184,20.0,241.34,241.23,11.11011824]
[1732559240398,20.4143,241.34,241.24,4.1452]
[1732559240995,20.4143,241.34,241.25,11.11011824]
[1732559241195,20.0,241.34,241.27,11.11011824]
[1732559242497,20.4143,241.34,241.27,11.11011824]
[1732559242998,20.4143,241.34,241.25,11.11011824]
[1732559243200,20.4143,241.34,241.24,4.145]
[1732559244486,20.4143,241.34,241.25,11.11011824]
[1732559244997,20.4143,241.34,241.27,11.11011824]
[1732559245790,20.4143,241.34,241.25,11.11011824]
[1732559246192,20.4143,241.34,241.25,15.25501824]
[1732559247301,20.4143,241.34,241.22,4.1455]
[1732559247511,20.4143,241.34,241.21,11.11011824]
[1732559247794,20.4143,241.34,241.21,15.25581824]
[1732559249092,20.4143,241.34,241.23,11.11011824]
[1732559249278,20.4143,241.34,241.25,11.11011824]
[1732559249692,20.4143,241.34,241.26,11.11011824]
[1732559250390,20.4143,241.34,241.27,4.1447]
[1732559250785,20.4143,241.34,241.26,11.11011824]
[1732559250988,20.4143,241.34,241.26,15.25491824]
[1732559251377,20.4143,241.34,241.28,11.11011824]
[1732559251802,20.0,241.34,241.28,11.11011824]
[1732559251977,15.1768,241.39,241.32,11.11011824]
[1732559252187,14.7626,241.39,241.32,11.11011824]
[1732559252396,7.9587,241.43,241.34,11.11011824]
[1732559252703,7.9587,241.43,241.35,11.11011824]
[1732559252704,0.4142,241.43,241.35,11.11011824]
[1732559253474,14.7626,241.44,241.36,11.11011824]
[1732559253677,14.7626,241.44,241.37,11.11011824]
[1732559253878,0.4141,241.47,241.39,11.11011824]
[1732559254084,0.4141,241.47,241.34,11.11011824]
[1732559254307,0.4141,241.47,241.35,4.1433]
[1732559254503,1.4494,241.47,241.34,11.11011824]
[1732559254682,5.45309653,241.46,241.33,4.1435]
[1732559254875,9.0204599,241.46,241.33,4.1435]
[1732559255078,20.0,241.43,241.33,4.1435]
[1732559255799,0.4142,241.42,241.3,11.11011824]
[1732559256688,0.4142,241.42,241.31,11.11011824]
[1732559257181,0.4142,241.42,241.32,4.1438]
[1732559257580,0.4142,241.42,241.31,11.11011824]
[1732559257833,0.4142,241.42,241.33,11.11011824]
[1732559257985,20.4141,241.44,241.33,11.11011824]
[1732559259007,20.4141,241.44,241.34,4.1435]
[1732559259804,20.4141,241.44,241.33,11.11011824]
[1732559260703,20.4141,241.44,241.34,4.1435]
[1732559261208,0.4141,241.44,241.35,11.11011824]
[1732559261585,0.4141,241.44,241.37,11.11011824]
[1732559263592,0.4141,241.44,241.35,11.11011824]
[1732559263915,20.0,241.45,241.39,11.11011824]
[1732559264812,20.4141,241.45,241.37,11.11011824]
[1732559265219,20.4141,241.45,241.35,11.11011824]
[1732559266122,20.4141,241.45,241.36,4.1431]
[1732559270406,20.4141,241.45,241.32,4.1437]
[1732559270607,20.0,241.44,241.32,4.1437]
[1732559270797,20.0,241.44,241.33,11.11011824]
[1732559271117,20.4141,241.45,241.33,11.11011824]
[1732559271292,20.0,241.41,241.31,4.01206737]
[1732559271492,20.0,241.41,241.3,4.01206737]
[1732559271809,20.0,241.41,241.28,4.1445]
[1732559272117,20.0,241.41,241.28,15.25461824]
[1732559272300,20.0,241.41,241.28,11.11011824]
[1732559272501,0.4142,241.4,241.28,15.25461824]
[1732559272690,20.0,241.37,241.28,15.25461824]
[1732559273015,30.4142,241.4,241.3,11.11011824]
[1732559273513,0.4142,241.4,241.3,11.11011824]
[1732559274093,20.0,241.41,241.32,11.11011824]
[1732559274294,20.0,241.41,241.36,11.11011824]
[1732559274589,14.7151,241.44,241.37,4.143]
[1732559274799,15.1292,241.44,241.37,4.143]
[1732559275617,15.1292,241.44,241.34,15.25351824]
[1732559278116,15.1292,241.44,241.32,11.11011824]
[1732559278992,15.1292,241.44,241.34,11.11011824]
[1732559279931,15.1292,241.44,241.33,4.1436]
[1732559280230,20.0,241.41,241.34,11.11011824]
[1732559280901,0.4141,241.44,241.32,11.11011824]
[1732559281309,1.4495,241.44,241.31,4.1439]
[1732559281502,1.4495,241.44,241.3,15.25431824]
[1732559282417,1.4495,241.44,241.3,11.11011824]
[1732559282607,20.0,241.4,241.26,4.1449]
[1732559282802,20.0,241.35,241.24,8.1567832]
[1732559283027,20.0,241.35,241.24,4.1451]
[1732559283601,20.0,241.35,241.24,15.25521824]
[1732559283797,20.0,241.35,241.24,4.1451]
[1732559284003,0.4143,241.34,241.24,4.1451]
[1732559284308,0.4143,241.34,241.23,11.11011824]
[1732559284519,20.0,241.31,241.23,15.25551824]
[1732559285027,20.0,241.31,241.25,11.11011824]
[1732559285526,30.0,241.34,241.27,11.11011824]
[1732559285715,30.0,241.34,241.26,11.11011824]
[1732559286034,30.0,241.34,241.27,11.11011824]
[1732559286213,30.0,241.34,241.29,11.11011824]
[1732559286528,30.0,241.34,241.31,11.11011824]
[1732559286704,30.0,241.34,241.32,11.11011824]
[1732559287038,30.0,241.34,241.29,11.11011824]
[1732559287331,30.0,241.34,241.3,11.11011824]
[1732559287622,30.0,241.34,241.29,11.11011824]
[1732559288126,30.0,241.34,241.31,11.11011824]
[1732559289629,30.0,241.34,241.29,15.25431824]
[1732559292536,30.0,241.34,241.32,7.12390015]
[1732559292714,29.93032178,241.34,241.32,7.12390015]
[1732559293234,29.93032178,241.34,241.33,23.776884]
[1732559294114,29.93032178,241.34,241.33,27.920584]
[1732559294516,29.93032178,241.34,241.33,39.04349454]
[1732559295406,0.4141,241.48,241.33,39.04349454]
[1732559295407,20.0,241.46,241.33,39.04349454]
[1732559295612,20.0,241.46,241.4,11.12291054]
[1732559296142,20.0,241.46,241.4,15.26521054]
[1732559296518,20.0,241.48,241.42,11.12291054]
[1732559296816,0.414,241.5,241.44,11.12291054]
[1732559297037,0.414,241.5,241.42,11.12291054]
[1732559298125,0.414,241.5,241.42,15.26491054]
[1732559298523,7.8953,241.55,241.45,11.12291054]
[1732559298840,0.414,241.54,241.45,11.12291054]
[1732559299042,15.0179,241.56,241.47,11.12291054]
[1732559299540,5.45309653,241.58,241.47,11.12291054]
[1732559299743,0.4139,241.57,241.45,11.12291054]
[1732559299921,0.4139,241.57,241.42,14.4973]
[1732559299922,5.86699653,241.57,241.43,11.12291054]
[1732559300235,0.4139,241.57,241.44,4.1418]
[1732559300640,0.4139,241.57,241.4,13.0802]
[1732559300641,1.4487,241.57,241.4,13.0802]
[1732559300816,20.0,241.54,241.4,4.1423]
[1732559301528,0.414,241.53,241.4,4.1423]
[1732559302449,20.0,241.49,241.37,15.26581054]
[1732559303745,0.4141,241.48,241.37,15.26581054]
[1732559304042,20.4141,241.48,241.35,15.26611054]
[1732559304844,21.4493,241.48,241.35,15.26611054]
[1732559305046,21.4493,241.48,241.31,19.27870522]
[1732559305251,20.0,241.44,241.31,15.26691054]
[1732559305454,20.0,241.44,241.29,15.26711054]
[1732559305943,1.4495,241.43,241.29,15.26711054]
[1732559306330,46.276184,241.42,241.26,4.01179468]
[1732559306639,20.0,241.39,241.25,11.12291054]
[1732559307727,0.4142,241.38,241.25,15.26781054]
[1732559308750,20.0,241.35,241.22,4.01179468]
[1732559309044,20.0,241.35,241.2,4.01179468]
[1732559309220,20.0,241.31,241.2,4.01179468]
[1732559309428,20.0,241.28,241.17,15.26911054]
[1732559309823,0.4144,241.27,241.17,15.26911054]
[1732559310023,20.0,241.28,241.19,11.12291054]
[1732559310356,20.4144,241.28,241.18,11.12291054]
[1732559311219,20.4144,241.28,241.14,11.12291054]
[1732559311430,20.0,241.24,241.12,0.4692824]
[1732559312224,20.0,241.24,241.12,11.59219294]
[1732559312848,0.4145,241.23,241.12,11.59219294]
[1732559313744,0.4145,241.23,241.12,0.4692824]
[1732559314555,14.604,241.22,241.12,0.4692824]
[1732559314842,20.0,241.19,241.12,0.4692824]
[1732559315733,7.8953,241.18,241.12,0.4692824]
[1732559316528,20.0,241.19,241.12,0.4692824]
[1732559316940,14.604,241.22,241.13,11.12291054]
[1732559317127,15.0185,241.22,241.12,4.6163824]
[1732559318221,15.0185,241.22,241.12,0.4692824]
[1732559318222,16.0548,241.22,241.12,0.4692824]
[1732559318419,20.0,241.19,241.12,0.4692824]
[1732559318653,20.0,241.18,241.12,0.4692824]
[1732559320224,20.0,241.14,241.12,0.4692824]
[1732559321343,0.4147,241.13,241.12,0.4692824]
[1732559322635,7.8953,241.12,240.9,4.1511]
[1732559322842,23.776884,241.07,240.92,11.12291054]
[1732559323038,20.0,241.08,240.92,11.12291054]
[1732559323246,20.0,241.09,240.93,11.12291054]
[1732559323438,20.0,241.09,240.92,11.12291054]
[1732559323747,1.4518,241.08,240.93,4.1505]
[1732559323956,20.0,241.04,240.93,4.1505]
[1732559324256,20.0,241.04,240.89,15.74329294]
[1732559324557,20.0,241.04,240.9,11.12291054]
[1732559324849,20.0,241.04,240.89,0.4692824]
[1732559325026,20.0,241.0,240.89,0.4692824]
[1732559325634,20.0,241.0,240.89,4.6204824]
[1732559325954,0.4149,240.99,240.89,4.6204824]
[1732559326448,20.0,241.0,240.91,11.12291054]
[1732559326654,20.4148,241.04,240.92,11.12291054]
[1732559327932,20.4148,241.04,240.91,15.27361054]
[1732559328351,20.4148,241.04,240.91,4.1507]
[1732559328742,20.0,241.0,240.89,0.4692824]
[1732559329855,0.4149,240.99,240.89,0.4692824]
[1732559330030,0.4149,240.99,240.89,4.6204824]
[1732559330751,0.4149,240.99,240.9,11.12291054]
[1732559331252,0.4149,240.99,240.89,15.74339294]
[1732559332250,0.4149,240.99,240.9,11.12291054]
[1732559332557,0.4148,241.03,240.92,11.12291054]
[1732559333232,0.4148,241.03,240.91,11.12291054]
[1732559333847,0.4148,241.03,240.91,15.27371054]
[1732559334355,0.4148,241.03,240.91,4.1508]
[1732559335839,0.4148,241.03,240.91,11.12291054]
[1732559336139,0.4148,241.03,240.93,11.12291054]
[1732559336534,134.46652787,241.09,240.93,11.12291054]
[1732559336851,20.0,241.06,240.92,11.12291054]
[1732559337655,0.4148,241.05,240.92,15.27351054]
[1732559338035,0.4148,241.05,240.92,4.1506]
[1732559338240,0.4148,241.05,240.92,15.27351054]
[1732559338461,0.4148,241.05,240.93,11.12291054]
[1732559338754,20.4148,241.05,240.93,15.27331054]
[1732559339137,20.4148,241.05,240.93,4.1504]
[1732559339758,20.4148,241.05,240.94,11.12291054]
[1732559340256,20.4148,241.05,240.95,11.12291054]
[1732559341246,20.4148,241.05,240.9,14.5288]
[1732559341247,0.4147,241.1,240.98,11.12291054]
[1732559341862,1.4516,241.11,240.98,11.12291054]
[1732559342160,1.4516,241.11,240.95,11.12291054]
[1732559342364,1.4516,241.11,240.95,15.27311054]
[1732559342557,1.4516,241.11,240.97,11.12291054]
[1732559342766,1.4516,241.11,240.96,11.12291054]
[1732559342962,1.4516,241.11,240.95,15.27311054]
[1732559343468,0.4148,241.08,240.98,11.12291054]